[Event "10th Floripa Open 2024"]
[Site "Florianopolis"]
[Date "2024.01.28"]
[Round "10.5"]
[White "Cuenca Jimenez, Jose Fernando"]
[Black "Silva, Kaua Marques"]
[Result "0-1"]
[ECO "A47"]
[WhiteElo "2514"]
[BlackElo "2142"]
[Annotator "RC"]
[PlyCount "171"]
[EventDate "2024.01.10"]
[EventType "swiss"]
[EventCountry "BRA"]
[SourceTitle "playchess.com"]
[Source "ChessBase"]
[SourceQuality "1"]
[TimeControl "5400+30"]

1. d4 {[%emt 0:00:03]} Nf6 {[%emt 0:10:55]} 2. Bf4 {[%emt 0:00:11]} e6 {[%emt 0:00:06]} 3. e3 {[%emt 0:00:28]} c5 {[%emt 0:00:33]} 4. Nf3 {[%emt 0:00:38]} b6 {[%emt 0:00:04]} 5. Nbd2 {[%emt 0:01:48]} Be7 {[%emt 0:00:07]} 6. h3 {[%emt 0:01:29]} O-O {[%emt 0:00:45]} 7. c3 {[%emt 0:01:05]} Bb7 {[%emt 0:00:20]} 8. Bd3 {[%emt 0:01:32]} cxd4 {[%emt 0:01:41]} 9. exd4 {[%emt 0:00:22]} d6 {[%emt 0:00:06]} 10. O-O {[%emt 0:02:55]} Nbd7 {[%emt 0:00:06]} 11. Re1 {[%emt 0:01:43]} Re8 {[%emt 0:02:02]} 12. Bh2 {[%emt 0:03:20]} Qc7 {[%emt 0:02:06]} 13. a4 {[%emt 0:00:26]} a6 {[%emt 0:00:31]} 14. Nc4 {[%emt 0:00:37]} Bf8 {[%emt 0:05:59]} 15. Ne3 {[%emt 0:02:03]} Bc6 {[%emt 0:05:25]} 16. Nc2 {[%emt 0:21:26]} Qb7 {[%emt 0:11:56]} 17. Nb4 {[%emt 0:07:51]} Be4 {[%emt 0:01:46]} 18. Bxe4 {[%emt 0:03:37]} Nxe4 {[%emt 0:00:05]} 19. d5 {[%emt 0:06:27]} Ndf6 {[%emt 0:02:15]} 20. dxe6 {[%emt 0:01:37]} fxe6 {[%emt 0:00:08]} 21. Nd4 {[%emt 0:00:18]} e5 {[%emt 0:06:04]} 22. Nf5 {[%emt 0:03:15]} a5 {[%emt 0:09:52]} 23. Nd3 {[%emt 0:05:45]} Rad8 {[%emt 0:11:21]} 24. Qb3+ {[%emt 0:04:27]} Kh8 {[%emt 0:02:02]} 25. Rad1 {[%emt 0:00:06]} Qc6 {[%emt 0:05:12]} 26. Ne3 {[%emt 0:03:50]} Nc5 {[%emt 0:01:59]} 27. Nxc5 {[%emt 0:02:37]} Qxc5 {[%emt 0:01:53]} 28. Nd5 {[%emt 0:08:10]} Nd7 {[%emt 0:00:25]} 29. Re4 {[%emt 0:05:22]} Rc8 {[%emt 0:00:03]} 30. Ne3 {[%emt 0:00:37]} Qc6 {[%emt 0:02:28]} 31. Rc4 {[%emt 0:03:12]} Nc5 {[%emt 0:02:08]} 32. Qb5 {[%emt 0:00:36]} Qxb5 {[%emt 0:01:29]} 33. axb5 {[%emt 0:00:01]} Kg8 {[%emt 0:01:27]} 34. Nd5 {[%emt 0:01:12]} Rb8 {[%emt 0:02:16]} 35. Kf1 {[%emt 0:01:46]} Rb7 {[%emt 0:01:13]} 36. f3 {[%emt 0:00:30]} a4 {[%emt 0:05:27]} 37. Bg1 {[%emt 0:02:53]} Ra8 {[%emt 0:00:17]} 38. Ra1 {[%emt 0:02:54]} Ra5 {[%emt 0:01:46]} 39. Rb4 {[%emt 0:00:01]} Nd3 {[%emt 0:00:37]} 40. Raxa4 {[%emt 0:02:45]} Nxb4 {[%emt 0:00:23]} 41. Rxb4 {[%emt 0:00:01]} Ra1+ {[%emt 0:00:20]} 42. Kf2 {[%emt 0:00:00]} Rd1 {[%emt 0:01:21]} 43. c4 {[%emt 0:01:12]} Ra7 {[%emt 0:00:34]} 44. Bh2 {[%emt 0:00:49]} Be7 {[%emt 0:03:25]} 45. Rb3 {[%emt 0:00:25]} Bh4+ {[%emt 0:00:25]} 46. Ke3 {[%emt 0:00:36]} Rh1 {[%emt 0:00:38]} 47. Nxb6 {[%emt 0:00:14]} Rxh2 {[%emt 0:00:08]} 48. Nc8 {[%emt 0:00:31]} Ra8 {[%emt 0:01:17]} 49. Nxd6 {[%emt 0:00:00]} Be7 {[%emt 0:00:51]} 50. Ne4 {[%emt 0:01:12]} Rxg2 {[%emt 0:00:27]} 51. b6 {[%emt 0:00:09]} Rb8 {[%emt 0:00:33]} 52. Rb5 {[%emt 0:00:50]} Rg6 {[%emt 0:00:28]} 53. Rxe5 {[%emt 0:00:28]} Kf7 {[%emt 0:00:41]} 54. c5 {[%emt 0:00:17]} Bxc5+ {[%emt 0:00:27]} 55. Nxc5 {[%emt 0:00:32]} Rbxb6 {[%emt 0:00:33]} 56. b3 {[%emt 0:00:12]} Rh6 {[%emt 0:00:12]} 57. Re4 {[%emt 0:01:04]} Rxh3 {[%emt 0:00:25]} 58. Kf2 {[%emt 0:00:31]} Rh2+ {[%emt 0:00:30]} 59. Kg3 {[%emt 0:00:24]} Rb2 {[%emt 0:00:30]} 60. Rc4 {[%emt 0:00:35]} Rg6+ {[%emt 0:00:32]} 61. Kf4 {[%emt 0:00:12]} Rc6 {[%emt 0:00:39]} 62. Ke5 {[%emt 0:00:17]} h5 {[%emt 0:00:41]} 63. b4 {[%emt 0:00:56]} Rf6 {[%emt 0:00:23]} 64. Ne4 {[%emt 0:00:27]} Rb6 {[%emt 0:00:31]} 65. Nd6+ {[%emt 0:00:19]} Kg6 {[%emt 0:00:08]} 66. f4 {[%emt 0:00:50]} R6xb4 {[%emt 0:00:34]} 67. f5+ {[%emt 0:00:30]} Kh7 {[%emt 0:00:19]} 68. Rc7 {[%emt 0:00:11]} Re2+ {[%emt 0:00:17]} 69. Kd5 {[%emt 0:00:01]} Rf4 {[%emt 0:00:16]} 70. Rf7 {[%emt 0:01:15]} Kg8 {[%emt 0:00:24]} 71. Ra7 {[%emt 0:00:22]} Rf1 {[%emt 0:00:34]} 72. Ra8+ {[%emt 0:00:40]} Kh7 {[%emt 0:00:04]} 73. Kc4 {[%emt 0:00:30]} Rc2+ {[%emt 0:00:20]} 74. Kd3 {[%emt 0:00:30]} Rd1+ {[%emt 0:00:58]} 75. Kxc2 {[%emt 0:00:10]} Rxd6 {[%emt 0:00:04]} 76. Rb8 {[%emt 0:00:51]} Rd7 {[%emt 0:00:37]} 77. Rb6 {[%emt 0:00:19]} Rd5 {[%emt 0:01:01]} 78. f6 {[%emt 0:00:04]} g5 {[%emt 0:01:01]} 79. f7 {[%emt 0:00:57]} Kg7 {[%emt 0:00:34]} 80. Rf6 {[%emt 0:00:28]} Kf8 {[%emt 0:00:04]} 81. Kc3 {[%emt 0:00:08]} g4 {[%emt 0:00:41]} 82. Kc4 {[%emt 0:00:00]} Rg5 {[%emt 0:00:06]} 83. Kd3 {[%emt 0:01:06]} g3 {[%emt 0:00:04]} 84. Rf1 {[%emt 0:00:15]} h4 {[%emt 0:01:15]} 85. Ke3 {[%emt 0:01:07]} h3 {[%emt 0:00:33]} 86. Kd4 {[%emt 0:01:08]} 0-1

[Event "10th Floripa Open 2024"]
[Site "Florianopolis"]
[Date "2024.01.28"]
[Round "10.6"]
[White "Ticona Rocabado, Licael Roderick"]
[Black "Flores Quillas, Diego Saul Rodri"]
[Result "1-0"]
[ECO "E10"]
[WhiteElo "2350"]
[BlackElo "2429"]
[Annotator "TA"]
[PlyCount "125"]
[EventDate "2024.01.10"]
[EventType "swiss"]
[EventCountry "BRA"]
[SourceTitle "playchess.com"]
[Source "ChessBase"]
[SourceQuality "1"]
[TimeControl "5400+30"]

{[%evp 29,125,0,0,11,8,9,6,18,29,24,22,-23,-45,-19,0,-16,1,8,0,0,0,0,57,47,180,249,229,227,227,252,225,0,0,-10,-10,-16,-31,-14,28,8,12,0,0,-49,-28,-19,-12,-20,0,0,0,-20,0,-15,-20,-19,-4,-4,-4,-4,0,0,0,0,0,0,0,0,871,848,779,707,908,907,853,792,29975,29977,29977,29978,29978,29979,29980,29981,29981,29982,29982,29983,29983,29984,29984,29985,29986,29987,29987,29988,29988,29989]} 1. d4 {[%emt 0:07:11]} Nf6 {[%emt 0:00:02]} 2. c4 {[%emt 0:00:05]} e6 {[%emt 0:00:04]} 3. Nf3 {[%emt 0:00:05]} c5 {[%emt 0:00:08]} 4. dxc5 {[%emt 0:00:12]} Na6 {[%emt 0:01:03]} 5. Nc3 {[%emt 0:00:53]} Nxc5 {[%emt 0:00:21]} 6. e3 {[%emt 0:00:10] E10: Blumenfeld Gambit.} b6 {[%emt 0:01:44]} 7. Be2 {[%emt 0:00:24]} Bb7 {[%emt 0:00:05]} 8. O-O {[%emt 0:01:27]} Be7 {[%emt 0:00:04]} 9. b3 {[%emt 0:00:06]} O-O {[%emt 0:00:39]} 10. Bb2 {[%emt 0:00:06]} d6 {[%emt 0:00:04]} 11. Qc2 {[%emt 0:01:02]} Rc8 {[%emt 0:01:19]} 12. Rfd1 {[%emt 0:01:06]} a6 {[%emt 0:00:37]} 13. Rac1 {[%emt 0:01:33]} Qc7 {[%emt 0:00:10]} 14. Nd4 $146 {[%emt 0:00:28]} ({Predecessor:} 14. Nd2 Rfd8 15. Bf3 h6 16. Bxb7 Qxb7 17. Qb1 Rc7 18. a4 e5 19. e4 Rdc8 20. Nd5 Nxd5 21. cxd5 {0-1 Kretschel,K (2029)-Lederle,V (2215) Bayern-ch Rosenheim 2015 (5)}) 14... Qb8 {[%emt 0:01:13]} 15. Bf3 {[%emt 0:07:08]} Bxf3 {[%emt 0:02:18]} 16. Nxf3 {[%emt 0:00:06]} b5 {[%emt 0:00:03]} 17. b4 {[%emt 0:00:33]} Ncd7 {[%emt 0:01:25]} 18. cxb5 {[%emt 0:00:10]} axb5 {[%emt 0:00:01]} 19. Qe2 {[%emt 0:04:33]} d5 {[%emt 0:07:46]} 20. Nxb5 {[%emt 0:03:10]} Bxb4 {[%emt 0:02:20]} 21. a4 {[%emt 0:02:57]} Qa8 {[%emt 0:01:51]} (21... Ne4 $5) 22. Ne5 {[%emt 0:02:51]} Qxa4 {[%emt 0:09:48]} (22... Nxe5 {simplifies} 23. Bxe5 Qxa4 24. Bxf6 Rxc1 25. Rxc1 gxf6 26. Qg4+ Kh8) 23. Nxd7 {[%emt 0:00:20]} Nxd7 {[%emt 0:00:02]} 24. Qg4 $1 {[%emt 0:00:12]} g6 {[%emt 0:00:04]} (24... Qxb5 25. Qxg7#) 25. Qd4 {[%emt 0:01:42]} f6 {[%emt 0:00:07]} (25... e5 $1 $11 26. Qxd5 Rxc1 27. Rxc1 Rb8) 26. Nc7 $14 {[%emt 0:00:25]} Kf7 {[%emt 0:15:31]} ({Better is} 26... Qb3 $1 $14 27. Rd3 (27. Nxe6 Rxc1 28. Rxc1 Ra8 $14) 27... Qa2) 27. Qg4 $1 $18 {[%emt 0:08:41]} (27. e4 $6 h5 $16) 27... f5 {[%emt 0:00:06]} 28. Qd4 {[%emt 0:00:05]} Rg8 {[%emt 0:00:09]} 29. e4 $1 {[%emt 0:10:41]} Qa5 {[%emt 0:03:01] [#]} 30. exd5 $2 {[%emt 0:00:50]} (30. exf5 $1 $18 e5 (30... gxf5 $2 31. Qh4 $18) 31. Qxd5+ Qxd5 32. Rxd5 (32. Nxd5 Rxc1 33. Bxc1 Bc5 $16)) 30... e5 $11 {[%emt 0:00:06]} 31. Qc4 {[%emt 0:04:54]} Bd6 {[%emt 0:53:49]} 32. Nb5 {[%emt 0:00:06]} (32. Qb5 {simplifies} Qxb5 33. Nxb5 Bc5 34. Rc2) 32... Rxc4 {[%emt 0:00:00]} 33. Nxd6+ {[%emt 0:00:06]} Ke7 {[%emt 0:00:00]} 34. Nxc4 {[%emt 0:00:06]} Qb5 {[%emt 0:00:00]} 35. Bxe5 {[%emt 0:01:00]} Rc8 {[%emt 0:00:00]} 36. Bd6+ {[%emt 0:00:06]} (36. Bc7 $1 $11 Qa6 (36... Rxc7 $2 37. d6+ Kd8 38. dxc7+ Kxc7 39. Na3+ $18) 37. Ne3) 36... Kf6 {[%emt 0:00:00]} 37. Ne3 {[%emt 0:00:51]} Rxc1 {[%emt 0:00:00]} 38. Rxc1 {[%emt 0:00:02]} Ne5 {[%emt 0:00:00]} 39. Bxe5+ {[%emt 0:04:50]} Kxe5 {[%emt 0:00:00]} 40. Rd1 {[%emt 0:00:06]} f4 {[%emt 0:00:00]} 41. Ng4+ {[%emt 0:03:55]} Kd6 {[%emt 0:00:00]} 42. f3 {[%emt 0:00:16]} Qe2 {[%emt 0:00:00]} 43. Nf2 {[%emt 0:00:07]} Kd7 {[%emt 0:00:00]} 44. h3 {[%emt 0:02:06]} h5 {[%emt 0:00:00]} 45. Rb1 {[%emt 0:02:21]} g5 {[%emt 0:00:00]} 46. Ne4 {[%emt 0:03:03]} Qa2 {[%emt 0:00:00]} 47. Re1 {[%emt 0:05:09]} Qa5 {[%emt 0:00:00]} 48. Nf6+ {[%emt 0:01:07]} Kd6 $2 {[%emt 0:00:00][%mdl 8192]} (48... Kc7 $11 49. Re7+ Kd8 50. Re8+ Kc7) 49. Re6+ $18 {[%emt 0:25:37]} Kc5 {[%emt 0:00:00]} 50. d6 $1 {[%emt 0:00:00]} (50. Nxh5 Kxd5 51. Rg6 Kd4 $11) 50... Kc6 {[%emt 0:00:45]} 51. d7+ {[%emt 0:00:00]} (51. Nxh5 Qf5 52. Ng7 Qh7 $11) 51... Kc7 {[%emt 0:00:01] [#]} 52. Kh2 $1 {[%emt 0:00:00]} ({Inferior is} 52. Nxh5 Kxd7 53. Rg6 Kc8 $11) 52... g4 {[%emt 0:00:16]} 53. hxg4 {[%emt 0:00:00]} hxg4 {[%emt 0:00:14]} 54. fxg4 {[%emt 0:00:00]} Qg5 {[%emt 0:00:30]} 55. Re8 {[%emt 0:00:00]} ({Not} 55. Rc6+ Kxc6 56. d8=Q Qh4+ 57. Kg1 Qe1+ 58. Kh2 Qg3+ 59. Kg1 Qe1+ 60. Kh2 Qh4+ 61. Kg1 Qe1+ $11) 55... Qh4+ {[%emt 0:00:18]} 56. Kg1 {[%emt 0:00:00]} Qxf6 {[%emt 0:00:09]} 57. d8=Q+ {[%emt 0:00:00]} Qxd8 {[%emt 0:00:03]} 58. Rxd8 {[%emt 0:00:00]} Kxd8 {[%emt 0:00:04]} 59. Kf2 {[%emt 0:00:00]} Ke7 {[%emt 0:00:50]} 60. Kf3 {[%emt 0:00:00]} Kf6 {[%emt 0:00:02]} 61. Kxf4 {[%emt 0:00:00]} Kg6 {[%emt 0:00:01]} 62. g5 {[%emt 0:00:00]} Kg7 {[%emt 0:00:03]} 63. Kf5 {[%emt 0:07:00]} 1-0

[Event "10th Floripa Open 2024"]
[Site "Florianopolis"]
[Date "2024.01.28"]
[Round "10.7"]
[White "Dos Santos Dutra, Fernando Junior Frei"]
[Black "Haldorsen, Benjamin"]
[Result "0-1"]
[ECO "E70"]
[WhiteElo "2262"]
[BlackElo "2427"]
[Annotator "TA"]
[PlyCount "98"]
[EventDate "2024.01.10"]
[EventType "swiss"]
[EventCountry "BRA"]
[SourceTitle "playchess.com"]
[Source "ChessBase"]
[SourceQuality "1"]
[TimeControl "5400+30"]

{[%evp 11,97,39,39,-12,41,30,32,37,39,29,39,35,40,0,47,58,57,-9,74,0,27,0,19,12,98,19,20,0,0,0,84,78,72,82,75,26,44,18,41,-20,-19,-51,-41,-45,-39,-35,-39,-45,-62,-70,-30,-115,-111,-85,-78,-117,-114,-133,-106,-104,-101,-117,-47,-127,-126,-125,-107,-446,-438,-425,-380,-653,-631,-611,-608,-562,-585,-483,-383,-721,-620,-620,-608,-581,-574,-1123,-1086,-1050]} 1. d4 {[%emt 0:06:45]} Nf6 {[%emt 0:00:34]} 2. c4 {[%emt 0:00:12]} g6 {[%emt 0:00:23]} 3. Nc3 {[%emt 0:00:08]} Bg7 {[%emt 0:00:05]} 4. e4 {[%emt 0:00:08]} d6 {[%emt 0:00:07]} 5. Nge2 {[%emt 0:00:16]} O-O {[%emt 0:01:29]} 6. Ng3 {[%emt 0:00:16]} h5 {[%emt 0:00:09][%cal Bh7h5,Bh5h4][%mdl 32]} 7. Bd3 {[%emt 0:02:34]} (7. Be2 $14) 7... a5 {[%emt 0:10:35]} (7... h4 $11 8. Nge2 h3) 8. O-O {[%emt 0:03:57]} e5 {[%emt 0:02:57]} 9. d5 {[%emt 0:00:05] White is slightly better.} h4 {[%emt 0:00:35]} 10. Nge2 {[%emt 0:00:15]} Nh5 {[%emt 0:00:07]} 11. h3 {[%emt 0:00:38]} Na6 {[%emt 0:01:19]} 12. Be3 {[%emt 0:01:47]} Nc5 {[%emt 0:01:38]} (12... f5 $11 13. exf5 gxf5) 13. Bc2 $14 {[%emt 0:06:05]} f5 {[%emt 0:13:18]} 14. Qd2 {[%emt 0:01:03]} (14. Kh1 $14) 14... Kh7 {[%emt 0:12:35]} (14... f4 $11 15. Bxc5 dxc5) 15. f3 {[%emt 0:11:08]} ({Better is} 15. exf5 $16 Bxf5 16. Bxc5 dxc5 17. Rae1) 15... Bd7 {[%emt 0:03:04]} 16. b3 {[%emt 0:00:46]} Rf7 {[%emt 0:05:54]} 17. Rab1 {[%emt 0:02:24]} Qf8 {[%emt 0:03:09]} (17... f4 $11 18. Bf2 Qg5) 18. a3 {[%emt 0:02:31]} (18. Bxc5 $16 {[%cal Oe4f5] exf5! would now be deadly.} dxc5 19. exf5 Bxf5 20. Bxf5 Rxf5 21. Qe1) 18... Bh6 $11 {[%emt 0:01:04]} 19. b4 {[%emt 0:02:12]} axb4 {[%emt 0:40:58]} 20. axb4 {[%emt 0:00:09]} Na6 {[%emt 0:00:00]} ({But not} 20... Bxe3+ $6 21. Qxe3 f4 22. Qf2 $16) (20... Nxe4 $1 $11 {remains equal.} 21. Bxe4 (21. fxe4 f4 $15) 21... fxe4 22. Nxe4 Re7) 21. Bxh6 {[%emt 0:00:35]} Qxh6 {[%emt 0:00:00]} 22. Qxh6+ {[%emt 0:00:04]} Kxh6 {[%emt 0:00:00]} 23. Kf2 {[%emt 0:01:58]} (23. Ra1 $16) 23... Kg5 {[%emt 0:00:00]} 24. Ke3 {[%emt 0:00:41]} Rb8 {[%emt 0:00:00]} 25. Rfd1 {[%emt 0:21:22]} ({White should try} 25. Rb2 $14) 25... b5 {[%emt 0:00:00]} 26. Bd3 {[%emt 0:08:50]} bxc4 {[%emt 0:00:00]} 27. Bxc4 {[%emt 0:00:41]} Nxb4 {[%emt 0:00:00]} 28. Rd2 {[%emt 0:00:22]} Rff8 {[%emt 0:00:00]} 29. Rdb2 {[%emt 0:00:38]} c5 {[%emt 0:00:00]} 30. dxc6 {[%emt 0:00:02]} Nxc6 {[%emt 0:00:00]} 31. Rd2 {[%emt 0:19:34]} (31. Rb5 $11) 31... Rxb1 {[%emt 0:00:00]} (31... Na5 {is more complex.} 32. Ba6 Rxb1 33. Nxb1 f4+) 32. Nxb1 {[%emt 0:00:02]} Na5 $36 {[%emt 0:00:00][%mdl 2048] White is under strong pressure.} 33. Ba2 {[%emt 0:00:36]} Nb7 {[%emt 0:00:00]} 34. Rb2 {[%emt 0:00:59]} Bc6 {[%emt 0:00:00]} 35. Rb6 {[%emt 0:00:49]} Rc8 {[%emt 0:00:00]} 36. Nbc3 {[%emt 0:00:04]} Ng3 {[%emt 0:00:54]} ({Black should play} 36... fxe4 $17 37. fxe4 Nc5) 37. Nxg3 {[%emt 0:00:26]} (37. Be6 $15 Na5 38. Nxg3 (38. Bxc8 $2 Nc4+ 39. Kf2 Nxb6 $17) 38... hxg3 39. Kd3 (39. h4+ $2 Kxh4 40. Ke2 Rc7 $19)) 37... hxg3 $17 {[%emt 0:00:05]} 38. Nd5 {[%emt 0:01:25]} Ra8 {[%emt 0:03:41]} 39. Bc4 $2 {[%emt 0:00:04][%mdl 8192] [#] White does not recover from this.} (39. Nc3 $17 {is more resistant.} Nd8 40. Kd2) 39... Ra3+ $19 {[%emt 0:00:12]} 40. Ke2 {[%emt 0:06:19]} Na5 {[%emt 0:00:13] Strongly threatening ...Ba8.} 41. Ra6 $2 {[%emt 0:01:24]} (41. exf5 gxf5 (41... Nxc4 42. Rxc6 Ra2+ 43. Ke1 $11) 42. Kf1) 41... Bb7 {[%emt 0:02:12]} 42. Ra7 {[%emt 0:00:12]} Nxc4 {[%emt 0:01:58]} 43. Rxb7 {[%emt 0:00:03][%mdl 4096] Endgame. KRN-KRN} Ra2+ {[%emt 0:00:16]} 44. Kd3 {[%emt 0:00:29]} Nb2+ {[%emt 0:00:07]} 45. Ke3 $2 {[%emt 0:01:13] [#]} (45. Ke2 Na4+ 46. Kf1 Rf2+ 47. Kg1) 45... Nd1+ {[%emt 0:00:37] Black is clearly winning.} 46. Kd3 {[%emt 0:00:03]} Nf2+ {[%emt 0:00:54]} 47. Kc4 {[%emt 0:00:35]} fxe4 {[%emt 0:00:14]} 48. Rh7 {[%emt 0:01:06]} exf3 {[%emt 0:00:55]} 49. gxf3 {[%emt 0:00:29]} Ra4+ {[%emt 0:02:42] Weighted Error Value: White=0.63/Black=0.22 (precise) .  Loses game:     	White=1     	---        Mistake:       	White=9     	Black=6      Inaccurate:     	White=5     	Black=2      OK:         	White=5     	Black=12     Best:        	White=2     	Black=2} 0-1

[Event "10th Floripa Open 2024"]
[Site "Florianopolis"]
[Date "2024.01.28"]
[Round "10.8"]
[White "Rodriguez Vila, Andres"]
[Black "Perez, Maximiliano"]
[Result "1-0"]
[ECO "C02"]
[WhiteElo "2407"]
[BlackElo "2383"]
[Annotator "TA"]
[PlyCount "87"]
[EventDate "2024.01.10"]
[EventType "swiss"]
[EventCountry "BRA"]
[SourceTitle "playchess.com"]
[Source "ChessBase"]
[SourceQuality "1"]
[TimeControl "5400+30"]

{[%evp 11,87,-8,6,0,0,-16,29,40,40,27,40,10,59,36,51,33,31,34,215,216,206,217,207,216,223,220,216,210,300,284,302,283,345,326,293,285,404,333,338,304,452,440,476,289,289,293,281,271,340,346,329,322,550,539,552,487,416,237,452,372,897,894,753,516,602,246,241,254,252,257,256,255,256,225,369,286,325,313]} 1. d4 {[%emt 0:00:03]} e6 {[%emt 0:02:10]} 2. e4 {[%emt 1:31:27]} d5 {[%emt 0:00:08]} 3. e5 {[%emt 0:00:00]} c5 {[%emt 0:00:13]} 4. c3 {[%emt 0:00:00]} Nc6 {[%emt 0:00:10]} 5. Nf3 {[%emt 0:00:00]} Bd7 {[%emt 0:00:19]} 6. Bd3 {[%emt 0:00:00]} Rc8 {[%emt 0:04:12]} 7. O-O {[%emt 0:00:00]} cxd4 {[%emt 0:07:01]} 8. Re1 {[%emt 0:00:00]} h6 {[%emt 0:03:37]} 9. Nxd4 {[%emt 0:00:00] White has an edge.} Nxd4 {[%emt 0:00:10]} 10. cxd4 {[%emt 0:00:00]} Ne7 {[%emt 0:01:50][%cal Bg8e7,Be7c6,Bc6b4][%mdl 32]} 11. Nc3 {[%emt 0:00:00]} Qb6 {[%emt 0:00:09]} (11... Nc6 $11) 12. Rb1 {[%emt 0:00:00]} Nc6 {[%emt 0:00:29]} 13. Be3 {[%emt 0:00:00]} Be7 {[%emt 0:07:10]} 14. Qg4 {[%emt 0:00:00]} Kf8 {[%emt 0:00:16] A mistake that costs the game.} ({Black should play} 14... g6 $14) 15. Nxd5 $18 {[%emt 0:00:00]} Qd8 {[%emt 0:01:03]} 16. Nc3 {[%emt 0:00:00]} Nb4 {[%emt 0:01:46]} 17. Be4 {[%emt 0:00:00]} Bc6 {[%emt 0:00:06]} 18. Rec1 {[%emt 0:00:00]} h5 {[%emt 0:13:11]} 19. Qf3 {[%emt 0:00:00]} g6 {[%emt 0:08:11]} (19... Bxe4 $142 20. Qxe4 (20. Nxe4 Rc6 $18) 20... Rb8) 20. a3 {[%emt 0:00:00]} Bxe4 {[%emt 0:03:21]} 21. Qxe4 {[%emt 0:00:00]} Nc6 {[%emt 0:00:07]} 22. d5 {[%emt 0:00:00]} exd5 {[%emt 0:00:08]} 23. Nxd5 {[%emt 0:00:00]} Kg7 {[%emt 0:00:08]} (23... Qd7 $142 24. Nxe7 Nxe7) 24. Rd1 {[%emt 0:00:00]} Qe8 {[%emt 0:00:07]} 25. e6 {[%emt 0:00:00] [#] Hoping for Nxe7.} fxe6 {[%emt 0:02:14]} (25... Bd8 $142 26. e7 Bxe7 27. Bd4+ f6) 26. Qxe6 {[%emt 0:00:00]} Qf7 {[%emt 0:00:49]} 27. Qd7 {[%emt 0:00:00][%cal Od5e7] Black must now prevent Nxe7!} Bh4 {[%emt 0:05:03]} 28. Qh3 {[%emt 0:00:00]} Rcd8 {[%emt 0:40:22]} 29. Nf4 {[%emt 0:00:00]} Rxd1+ {[%emt 0:00:00]} 30. Rxd1 {[%emt 0:00:00]} Be7 {[%emt 0:00:00]} 31. Rd7 {[%emt 0:00:00] [#] Ne6+ would now be deadly.} Qa2 {[%emt 0:00:00]} (31... Rb8 {might work better.} 32. g3 Qc4 33. Bxa7 Ra8) 32. Bc1 {[%emt 0:00:00] And now Qc3+ would win.} (32. Rxb7 $2 Qb1+) (32. Ne6+ Kf6 33. Bd4+ (33. Bg5+ Kf7 $14) 33... Kf7 34. Qf3+ (34. Bxh8 $2 Qb1+) (34. Ng5+ Ke8 $11) 34... Kxe6 $16) 32... Qc4 {[%emt 0:00:00]} 33. Bd2 {[%emt 0:00:00]} Kf7 {[%emt 0:00:00]} 34. Qg3 {[%emt 0:00:00]} (34. Rxb7 Rd8 35. Rd7 Rxd7 36. Qxd7 Ne5 $18) (34. Rd5 $142 {Intending Qe6+ and mate.} Qe4 35. Qb3) 34... Qe4 {[%emt 0:00:00]} (34... Qc2 35. Be1 Qe4) 35. h3 {[%emt 0:00:00] aiming for Qb3+.} (35. Rxb7 $2 Qb1+) 35... b6 $2 {[%emt 0:00:00]} (35... Ke8) 36. Qb3+ {[%emt 0:00:00]} Ke8 {[%emt 0:00:00]} 37. Rc7 {[%emt 0:00:00]} Rf8 {[%emt 0:00:00][%cal Bh8f8,Bf8f5,Bf5d5,Bd5d1][%mdl 32]} 38. Qd5 {[%emt 0:00:00] Inhibits Nd4.} (38. Qb5 $142 Rxf4 39. Bxf4 (39. Rxc6 Kf8 $18) (39. Qxc6+ Qxc6 40. Rxc6 Rd4 $16) 39... Qxf4 40. Rc8+ (40. Rxc6 Kf8 $18) (40. Rxa7 Qc1+ 41. Kh2 Qf4+ 42. Kg1 Qc1+ 43. Kh2 Bf6 $11) 40... Kf7 41. Qd5+ (41. Qxc6 Qd2 $18) (41. Rxc6 Bc5 $18) 41... Kf6 42. Rxc6+ Kg7 43. Qe6 (43. g3 Qf7 $18)) 38... Qxd5 {[%emt 0:00:00]} 39. Nxd5 {[%emt 0:00:01]} Rf5 {[%emt 0:00:00]} 40. Nxe7 {[%emt 0:00:27]} ({Don't play} 40. Rxc6 $6 Rxd5 41. Bc3 Rd1+ 42. Kh2 Bd6+ 43. g3 Kd7 $16) 40... Nxe7 {[%emt 0:00:00]} 41. Rxa7 {[%emt 0:00:16]} Rd5 {[%emt 0:00:00]} 42. Be3 {[%emt 0:00:56]} Rd1+ {[%emt 0:00:00]} 43. Kh2 {[%emt 0:00:07]} Nd5 {[%emt 0:00:00]} 44. Rb7 {[%emt 0:02:39] Weighted Error Value: White=0.66/Black=0.51.  Loses game:     	---       	Black=1      Mistake:       	White=1     	Black=7      Inaccurate:     	White=2     	Black=1      OK:         	White=15    	Black=13     Best:        	White=1     	Black=4} 1-0